bitfinex/quotes_SOLUSD_20250903
["timestamp","ask_amount","ask_price","bid_price","bid_amount"]
[1756907381020,0.69,212.93,212.92,0.03]
[1756907381743,0.7,212.93,212.92,0.03]
[1756907382246,0.7,212.97,212.92,0.03]
[1756907382543,0.06,213.11,212.95,11.62819443]
[1756907382723,0.7,213.02,212.97,11.62819443]
[1756907382924,0.7,213.01,212.95,11.62819443]
[1756907383233,0.7,213.01,212.92,0.03]
[1756907383546,11.62819443,213.04,212.98,11.62819443]
[1756907383742,0.7,213.05,212.99,11.62819443]
[1756907383920,4.75246996,213.11,212.92,0.03]
[1756907383921,12.32819443,213.08,212.97,4.69549701]
[1756907384116,11.62819443,213.03,212.96,11.62819443]
[1756907384426,11.62819443,213.01,212.95,11.62819443]
[1756907384922,13.65559401,213.11,212.98,11.62819443]
[1756907384923,0.7,213.04,212.98,11.62819443]
[1756907385122,0.7,213.04,212.93,4.69637909]
[1756907385123,11.62819443,213.02,212.93,4.69637909]
[1756907385340,0.7,213.04,212.93,4.69637909]
[1756907385643,0.7,213.04,212.98,11.62819443]
[1756907385850,11.62819443,213.06,212.99,11.62819443]
[1756907386154,4.69365216,213.06,212.99,11.62819443]
[1756907386357,11.62819443,213.05,212.99,11.62819443]
[1756907386557,11.62819443,213.04,212.98,11.62819443]
[1756907387065,0.7,213.05,212.95,4.69593801]
[1756907387232,11.62819443,213.08,213.01,11.62819443]
[1756907387430,0.7,213.09,213.01,11.62819443]
[1756907387431,5.3928536,213.09,213.01,11.62819443]
[1756907387727,12.32819443,213.09,213.03,11.62819443]
[1756907388161,0.06,213.11,213.07,11.62819443]
[1756907388362,0.06,213.11,213.09,11.62819443]
[1756907388537,0.06,213.11,213.1,11.62819443]
[1756907388735,0.06,213.11,213.09,11.62819443]
[1756907389635,0.06,213.11,213.02,13.59559401]
[1756907389828,0.06,213.11,213.08,11.62819443]
[1756907390029,0.06,213.11,213.09,16.32087566]
[1756907390326,0.06,213.11,213.09,11.62819443]
[1756907390540,0.06,213.11,213.08,11.62819443]
[1756907390740,0.06,213.11,213.07,11.62819443]
[1756907390741,0.76,213.11,213.07,11.62819443]
[1756907390941,0.06,213.11,213.07,11.62819443]
[1756907391250,0.06,213.11,213.04,4.69395418]
[1756907391251,0.06,213.11,213.08,3.34075434]
[1756907391460,0.06,213.11,213.07,11.62819443]
[1756907391657,0.06,213.11,213.04,4.69395418]
[1756907391960,0.06,213.11,213.05,11.62819443]
[1756907392135,0.06,213.11,213.06,11.62819443]
[1756907392959,0.7,213.1,213.06,11.62819443]
[1756907393158,12.32819443,213.09,213.03,11.62819443]
[1756907393363,12.32819443,213.09,212.98,0.31]
[1756907393364,11.62819443,213.07,212.98,0.03]
[1756907393550,11.62819443,213.06,212.98,4.72525816]
[1756907393759,11.62819443,213.06,212.98,8.07063837]
[1756907393978,11.62819443,213.05,212.99,11.62819443]
[1756907394154,16.32202065,213.05,212.99,11.62819443]
[1756907394471,0.7,213.08,213.0,3.34739726]
[1756907394652,4.69284249,213.1,213.03,11.62819443]
[1756907394838,0.76,213.11,213.0,13.59559401]
[1756907395033,12.38819443,213.11,213.01,3.62566045]
[1756907395339,12.38819443,213.11,213.01,3.34566045]
[1756907395340,11.62819443,213.06,213.01,3.34566045]
[1756907395659,0.7,213.1,213.0,11.62819443]
[1756907395660,11.62819443,213.07,213.0,11.62819443]
[1756907395960,11.62819443,213.07,213.01,14.97385488]
[1756907396139,11.62819443,213.07,213.01,11.62819443]
[1756907396466,0.06,213.11,213.05,11.62819443]
[1756907397155,11.62819443,213.09,213.02,11.62819443]
[1756907397362,11.62819443,213.08,213.01,11.62819443]
[1756907397841,11.62819443,213.08,212.99,30.69499349]
[1756907398174,0.06,213.11,212.99,30.69499349]
[1756907398175,11.62819443,213.07,213.0,3.34587705]
[1756907398469,11.62819443,213.06,213.0,11.62819443]
[1756907398664,11.62819443,213.07,213.01,11.62819443]
[1756907399239,0.06,213.11,213.05,11.62819443]
[1756907399452,0.06,213.11,213.06,11.62819443]
[1756907400160,11.62819443,213.08,212.99,26.0]
[1756907400357,11.62819443,213.08,212.98,0.31]
[1756907400358,0.7,213.07,212.98,11.65819443]
[1756907400560,0.7,213.06,212.98,0.03]
[1756907400782,0.7,213.06,212.98,11.65819443]
[1756907400989,26.0,213.08,212.99,11.62819443]
[1756907401179,26.0,213.08,213.0,11.62819443]
[1756907401355,0.7,213.09,213.02,11.62819443]
[1756907401681,4.7524352,213.11,213.07,11.62819443]
[1756907401682,0.06,213.11,213.07,11.62819443]
[1756907401977,0.06,213.11,213.02,79.7]
[1756907401978,11.62819443,213.09,213.02,11.62819443]
[1756907402186,12.32819443,213.1,213.01,26.28]
[1756907402479,0.06,213.11,213.04,11.62819443]
[1756907402682,0.06,213.11,213.05,11.62819443]
[1756907402987,0.06,213.11,213.06,11.62819443]
[1756907403165,0.06,213.11,213.02,0.28]
[1756907403361,0.76,213.11,213.05,11.62819443]
[1756907403578,0.76,213.11,213.02,0.28]
[1756907403773,12.38819443,213.11,213.02,0.28]
[1756907403978,12.38819443,213.11,213.04,11.62819443]
[1756907404281,11.62819443,213.1,213.03,16.32236895]
[1756907404485,0.7,213.09,213.0,4.69469632]
[1756907404777,11.62819443,213.07,213.0,16.32289075]
[1756907405081,11.62819443,213.06,213.0,16.32289075]
[1756907405266,11.62819443,213.06,213.0,4.69469632]
[1756907405473,11.62819443,213.06,213.0,16.32289075]
[1756907405676,11.62819443,213.06,213.0,4.69469632]
[1756907405985,11.62819443,213.05,212.99,53.86819443]
[1756907406188,11.62819443,213.0,212.98,0.03]
[1756907406363,0.7,213.04,212.98,0.03]
[1756907406364,11.62819443,212.99,212.98,0.03]
[1756907406562,0.7,212.99,212.98,0.03]
[1756907406768,0.7,213.03,212.98,0.03]
[1756907406980,11.62819443,213.0,212.98,0.03]
[1756907407184,11.62819443,212.99,212.98,0.03]
[1756907407686,12.32819443,212.99,212.98,0.03]
[1756907407868,0.7,213.03,212.98,0.03]
[1756907408188,11.62819443,213.01,212.98,0.03]
[1756907408486,0.7,213.09,213.0,11.62819443]
[1756907408684,11.62819443,213.06,212.98,0.03]
[1756907408884,11.62819443,213.06,213.0,11.62819443]
[1756907409081,11.62819443,213.05,212.99,11.62819443]
[1756907409485,0.7,213.08,213.0,11.62819443]
[1756907409790,0.7,213.07,212.98,0.03]
[1756907409989,11.62819443,213.05,212.98,11.65819443]
[1756907410370,26.06,213.11,212.99,11.62819443]
[1756907410573,0.7,213.1,213.01,11.62819443]
[1756907410786,11.62819443,213.06,212.98,5.00515364]
[1756907411084,11.62819443,213.05,212.99,11.62819443]
[1756907411673,11.62819443,213.02,212.98,0.03]
[1756907411871,11.62819443,213.01,212.98,0.03]
[1756907412672,11.62819443,212.99,212.98,0.03]
[1756907413291,12.31819443,212.99,212.98,0.03]
[1756907414675,17.01325053,212.99,212.98,0.03]
[1756907414997,5.3850561,212.99,212.98,0.03]
[1756907415178,12.31819443,212.99,212.98,0.03]
[1756907415371,17.01325053,212.99,212.98,0.03]
[1756907415791,0.69,212.99,212.98,0.03]
[1756907415989,17.01325053,212.99,212.95,0.03]
[1756907416278,11.62819443,212.96,212.95,0.03]
[1756907416798,17.01391193,212.96,212.95,0.03]
[1756907417100,0.69,213.0,212.95,0.03]
[1756907417489,0.69,212.99,212.95,0.03]
[1756907417802,11.62819443,212.96,212.95,0.03]
[1756907417977,11.62819443,212.96,212.92,0.03]
[1756907418188,37.62819443,212.93,212.79,16.76749016]
[1756907418495,0.69,212.92,212.82,11.62819443]
[1756907418692,11.62819443,212.87,212.79,0.44]
[1756907418874,11.62819443,212.81,212.79,0.1]
[1756907419070,11.62819443,212.8,212.79,0.1]
[1756907419695,11.62819443,212.82,212.79,0.1]
[1756907420013,11.62819443,212.83,212.79,0.1]
[1756907420179,26.69,212.89,212.8,11.99819443]
[1756907420387,11.62819443,212.88,212.82,11.62819443]
[1756907420696,11.62819443,212.88,212.81,11.62819443]
[1756907421004,11.62819443,212.86,212.79,11.72819443]
[1756907421301,11.62819443,212.86,212.8,11.62819443]
[1756907421475,0.69,212.89,212.81,11.62819443]
[1756907421676,0.69,212.89,212.79,4.79944674]
[1756907421677,11.62819443,212.86,212.79,4.79944674]
[1756907421902,11.62819443,212.84,212.79,0.1]
[1756907422196,11.62819443,212.83,212.79,0.1]
[1756907422677,11.62819443,212.82,212.79,0.1]
[1756907422997,11.62819443,212.8,212.79,0.1]
[1756907423508,12.31819443,212.8,212.79,0.1]
[1756907424884,17.01744255,212.8,212.79,0.1]
[1756907425111,12.31819443,212.8,212.79,0.1]
[1756907425991,0.69,212.8,212.79,0.1]
[1756907426191,12.31819443,212.8,212.79,0.1]
[1756907426782,17.01744255,212.8,212.79,0.1]
[1756907426982,12.31819443,212.8,212.79,0.1]
[1756907427602,13.27422152,212.8,212.79,0.1]
[1756907427800,8.5749734,212.8,212.79,0.1]
[1756907428281,21.15919492,212.8,212.79,0.1]
[1756907428604,21.15919492,212.8,212.76,0.1]
[1756907428605,26.0,212.77,212.76,0.1]
[1756907428792,30.6999107,212.77,212.76,0.1]
[1756907428992,34.5749734,212.77,212.76,0.1]
[1756907429194,8.5749734,212.77,212.76,0.1]
[1756907429583,13.2748841,212.77,212.76,0.1]
[1756907429895,0.69,212.82,212.76,0.1]
[1756907430089,0.69,212.82,212.76,4.80009622]
[1756907430294,26.0,212.8,212.76,0.1]
[1756907430498,7.8849734,212.77,212.76,0.1]
[1756907430814,22.5,212.84,212.76,4.80009759]
[1756907430815,0.69,212.84,212.76,4.80009759]
[1756907430987,7.8849734,212.8,212.76,4.80009759]
[1756907431385,0.69,212.84,212.76,5.27009759]
[1756907431603,0.69,212.84,212.76,4.80009759]
[1756907431799,7.8849734,212.81,212.76,4.80009759]
[1756907431998,7.8849734,212.81,212.76,0.1]
[1756907432204,0.69,212.84,212.76,4.8001178]
[1756907432205,7.8849734,212.79,212.76,4.8001178]
[1756907432387,7.8849734,212.8,212.76,0.1]
[1756907432600,7.8849734,212.8,212.76,4.80011539]
[1756907432801,7.8849734,212.81,212.76,5.27011539]
[1756907433125,7.8849734,212.82,212.77,0.47]
[1756907433310,7.8849734,212.82,212.76,0.1]
[1756907433506,26.69,212.87,212.76,0.1]
[1756907433507,7.8849734,212.81,212.76,0.1]
[1756907433885,7.8849734,212.77,212.76,0.1]
[1756907434305,0.69,212.77,212.76,0.1]
[1756907434506,7.8849734,212.77,212.76,0.1]
[1756907434906,8.5749734,212.77,212.76,0.1]
[1756907435287,13.2748841,212.77,212.76,0.1]
[1756907436315,34.5749734,212.77,212.76,0.1]
[1756907436517,26.0,212.74,212.72,0.03]
[1756907436694,7.8849734,212.73,212.72,0.03]
[1756907437012,8.5749734,212.73,212.72,0.03]
[1756907437321,7.8849734,212.73,212.72,0.03]
[1756907439697,13.27576783,212.73,212.72,0.03]
[1756907439996,7.8849734,212.73,212.72,0.03]
[1756907440316,0.69,212.78,212.72,0.03]
[1756907440521,7.8849734,212.74,212.72,0.03]
[1756907440816,7.8849734,212.8,212.73,0.57]
[1756907441022,7.8849734,212.8,212.74,4.70057346]
[1756907441221,7.8849734,212.75,212.72,0.03]
[1756907441599,7.8849734,212.74,212.72,0.03]
[1756907441914,7.8849734,212.77,212.72,0.03]
[1756907442107,7.8849734,212.74,212.72,4.73086413]
[1756907442315,7.8849734,212.76,212.72,4.73086413]
[1756907442610,7.8849734,212.75,212.72,0.03]
[1756907443005,7.8849734,212.76,212.72,0.03]
[1756907443419,7.8849734,212.75,212.72,0.03]
[1756907443603,26.0,212.82,212.72,0.03]
[1756907443802,7.8849734,212.77,212.72,0.03]
[1756907444114,0.68,212.81,212.72,0.03]
[1756907444621,7.8849734,212.78,212.72,7.9149734]
[1756907444815,7.8849734,212.75,212.72,0.03]
[1756907445119,0.68,212.78,212.72,0.03]
[1756907445307,7.8849734,212.76,212.72,0.03]
[1756907445622,7.8849734,212.75,212.72,0.03]
[1756907445817,7.8849734,212.74,212.72,0.03]
[1756907446019,7.8849734,212.73,212.72,0.03]
[1756907446243,8.5649734,212.73,212.72,0.03]
[1756907446809,0.68,212.73,212.72,0.03]
[1756907447032,13.26576783,212.73,212.72,0.03]
[1756907447539,39.26576783,212.73,212.72,0.03]
[1756907448846,26.68,212.73,212.72,0.03]
[1756907449008,39.26576783,212.73,212.72,0.03]
[1756907449609,13.26576783,212.73,212.7,0.1]
[1756907449807,26.0,212.71,212.69,0.03]
[1756907450005,7.8849734,212.7,212.69,0.03]
[1756907450228,8.5649734,212.7,212.69,0.03]
[1756907450930,7.8849734,212.7,212.69,0.03]
[1756907451939,13.26643085,212.7,212.69,0.03]
[1756907452512,8.5649734,212.7,212.69,0.03]
[1756907452733,7.8849734,212.7,212.69,0.03]
[1756907453322,0.68,212.79,212.69,0.6]
[1756907453527,7.8849734,212.71,212.69,0.03]
[1756907453727,7.8849734,212.7,212.69,0.03]
[1756907454132,8.5649734,212.7,212.69,0.03]
[1756907454648,7.8849734,212.7,212.69,0.03]
[1756907456243,13.65559401,212.82,212.69,0.03]
[1756907456451,7.8849734,212.71,212.69,0.03]
[1756907457347,7.8849734,212.7,212.69,0.03]
[1756907457917,0.68,212.74,212.69,0.03]
[1756907458116,26.0,212.75,212.69,0.03]
[1756907458117,8.5649734,212.7,212.69,0.03]
[1756907458720,0.68,212.7,212.69,0.03]
[1756907458922,26.0,212.67,212.55,0.1]
[1756907459154,7.8849734,212.59,212.55,0.1]
[1756907459521,7.8849734,212.6,212.55,4.80474245]
[1756907459720,7.8849734,212.6,212.55,5.43474245]
[1756907460028,7.8849734,212.61,212.56,0.63]
[1756907460230,7.8849734,212.59,212.55,0.1]
[1756907460432,0.68,212.64,212.56,0.63]
[1756907460626,11.7549019,212.68,212.56,0.63]
[1756907460627,26.0,212.67,212.56,0.63]
[1756907460832,7.8849734,212.61,212.56,0.63]
[1756907461033,7.8849734,212.59,212.55,4.80472772]
[1756907461232,7.8849734,212.59,212.55,0.1]
[1756907461639,7.8849734,212.58,212.55,0.1]
[1756907461848,7.8849734,212.6,212.55,5.43474226]
[1756907462149,7.8849734,212.61,212.55,7.9849734]
[1756907462329,0.68,212.65,212.55,12.68969352]
[1756907462530,7.8849734,212.61,212.55,12.68969352]
[1756907462739,7.8849734,212.58,212.55,0.1]
[1756907462941,7.8849734,212.56,212.55,0.1]
[1756907463246,0.68,212.6,212.55,0.1]
[1756907463451,7.8849734,212.56,212.55,0.1]
[1756907463651,5.38389011,212.59,212.55,0.1]
[1756907463832,0.68,212.62,212.55,0.1]
[1756907464040,7.8849734,212.58,212.55,0.1]
[1756907464341,30.70311058,212.63,212.55,0.1]
[1756907464342,0.68,212.57,212.55,0.1]
[1756907464646,7.8849734,212.56,212.55,0.1]
[1756907464846,8.5649734,212.56,212.55,0.1]
[1756907465051,42.46062363,212.63,212.55,0.1]
[1756907465052,7.8849734,212.58,212.55,0.1]
[1756907465237,7.8849734,212.6,212.55,0.1]
[1756907465433,7.8849734,212.6,212.55,4.80476097]
[1756907465650,0.68,212.62,212.55,4.80476097]
[1756907465651,7.8849734,212.59,212.55,4.80476097]
[1756907466042,0.68,212.62,212.55,4.80476097]
[1756907466347,31.52615277,212.8,212.55,12.68973437]
[1756907466348,0.68,212.64,212.55,12.68973437]
[1756907466563,7.8849734,212.6,212.55,4.80467159]
[1756907466735,4.70189956,212.68,212.56,8.5149734]
[1756907466736,0.68,212.67,212.56,8.5149734]
[1756907466937,7.8849734,212.63,212.57,7.8849734]
[1756907467136,0.68,212.67,212.58,8.5149734]
[1756907467334,7.8849734,212.65,212.59,4.70389011]
[1756907467561,0.68,212.7,212.6,7.8849734]
[1756907467862,7.8849734,212.66,212.59,12.58886351]
[1756907468162,7.8849734,212.63,212.59,4.70389011]
[1756907468346,7.8849734,212.62,212.59,4.70389011]
[1756907468556,7.8849734,212.6,212.55,0.73]
[1756907468744,7.8849734,212.57,212.55,4.80476079]
[1756907468946,7.8849734,212.56,212.55,4.80476079]
[1756907469153,7.8849734,212.57,212.55,4.80476079]
[1756907469457,7.8849734,212.56,212.55,0.1]
[1756907470072,0.68,212.58,212.55,0.1]
[1756907470232,8.5649734,212.56,212.55,0.1]
[1756907471456,13.2695274,212.56,212.55,0.1]
[1756907472046,8.5649734,212.56,212.55,0.1]
[1756907472249,7.8849734,212.56,212.55,0.1]
[1756907472553,13.2795274,212.56,212.55,0.1]
[1756907473236,13.2795274,212.56,212.52,0.03]
[1756907473436,12.59019148,212.53,212.52,0.03]
[1756907473646,26.0,212.51,212.5,0.03]
[1756907473848,33.8849734,212.51,212.5,0.03]
[1756907474182,7.8849734,212.51,212.5,0.03]
[1756907474744,8.5749734,212.51,212.5,0.03]
[1756907475441,4.70588235,212.5,212.49,0.1]
[1756907475653,34.5749734,212.5,212.49,0.1]
[1756907475848,26.69,212.5,212.49,0.1]
[1756907476046,0.69,212.53,212.49,0.1]
[1756907476357,7.8849734,212.5,212.49,0.1]
[1756907476550,26.0,212.55,212.49,0.1]
[1756907476749,7.8849734,212.52,212.49,4.80607878]
[1756907476952,0.69,212.57,212.49,4.80607878]
[1756907477157,5.39433743,212.57,212.5,0.67]
[1756907477351,5.39433743,212.57,212.49,0.1]
[1756907477554,7.8849734,212.53,212.49,4.80606315]
[1756907477754,7.8849734,212.54,212.49,4.80606315]
[1756907477956,7.8849734,212.54,212.49,5.47606315]
[1756907478195,7.8849734,212.54,212.49,0.77]
[1756907478469,7.8849734,212.53,212.5,4.70588235]
[1756907478645,0.69,212.57,212.5,4.70588235]
[1756907479049,7.8849734,212.53,212.5,4.70588235]
[1756907479568,7.8849734,212.53,212.5,5.37588235]
[1756907479869,0.69,212.57,212.5,4.70588235]
[1756907480046,7.8849734,212.53,212.49,0.1]
[1756907480248,7.8849734,212.53,212.49,4.80601469]
[1756907480644,0.69,212.61,212.5,0.67]
[1756907480844,0.69,212.66,212.56,7.8849734]
[1756907481160,7.8849734,212.62,212.56,8.5549734]
[1756907481361,7.8849734,212.6,212.54,49.9649734]
[1756907481663,7.8849734,212.55,212.49,0.1]
[1756907481847,7.8849734,212.52,212.49,0.1]
[1756907482044,7.8849734,212.51,212.49,0.1]
[1756907482556,7.8849734,212.51,212.49,4.80609681]
[1756907482767,7.8849734,212.57,212.51,13.59559401]
[1756907482968,0.06,212.54,212.52,0.67]
[1756907483568,0.06,212.54,212.53,4.70521808]
[1756907483891,0.06,212.54,212.53,26.85578549]
[1756907484762,0.06,212.54,212.53,18.97081209]
[1756907484982,0.06,212.57,212.56,26.0]
[1756907485154,0.06,212.57,212.56,47.48056741]
[1756907485479,0.06,212.57,212.56,13.59559401]
[1756907485703,0.06,212.57,212.56,4.704554]
[1756907485977,0.06,212.57,212.54,13.59559401]
[1756907486285,0.06,212.57,212.54,4.7049967]
[1756907486487,0.06,212.57,212.53,42.04]
[1756907486488,7.9449734,212.57,212.53,42.04]
[1756907486665,7.9449734,212.57,212.51,14.26559401]
[1756907486981,0.06,212.57,212.52,49.9249734]
[1756907487358,0.06,212.57,212.53,0.67]
[1756907487557,0.06,212.57,212.52,42.04]
[1756907487760,11.73548195,212.57,212.53,4.70521808]
[1756907487980,11.73548195,212.57,212.52,42.04]
[1756907488355,11.73548195,212.57,212.51,29.97673254]
[1756907488765,11.73548195,212.57,212.52,42.04]
[1756907488966,11.73548195,212.57,212.52,42.71]
[1756907489174,11.73548195,212.57,212.51,18.30125059]
[1756907489478,11.73548195,212.57,212.52,42.04]
[1756907489985,11.73548195,212.57,212.53,4.70521808]
[1756907490161,11.67548195,212.56,212.52,42.04]
[1756907490572,0.06,212.57,212.53,12.34548195]
[1756907490879,0.06,212.57,212.55,11.67548195]
[1756907491075,0.06,212.57,212.54,25.94107596]
[1756907491284,0.06,212.57,212.52,46.74535147]
[1756907491478,11.73548195,212.57,212.52,46.74535147]
[1756907491663,11.73548195,212.57,212.52,42.04]
[1756907492070,11.73548195,212.57,212.53,4.70521808]
[1756907492259,11.73548195,212.57,212.52,42.04]
[1756907492459,12.42548195,212.57,212.52,42.04]
[1756907492774,11.73548195,212.57,212.52,42.04]
[1756907492971,0.69,212.56,212.51,18.30125492]
[1756907493176,11.67548195,212.56,212.52,42.02]
[1756907493770,11.73548195,212.57,212.52,42.02]
[1756907494083,0.06,212.57,212.54,11.67548195]
[1756907494382,0.06,212.57,212.56,11.67548195]
[1756907494580,0.69,212.71,212.56,37.67548195]
[1756907494784,0.69,212.71,212.63,11.67548195]
[1756907495084,0.69,212.71,212.58,13.59559401]
[1756907495085,0.06,212.76,212.64,42.0]
[1756907495286,11.67548195,212.72,212.64,42.0]
[1756907495467,11.67548195,212.67,212.65,42.0]
[1756907495666,0.69,212.69,212.65,42.0]
[1756907495869,11.67548195,212.67,212.65,42.0]
[1756907496076,11.67548195,212.72,212.66,11.67548195]
[1756907496367,26.0,212.73,212.66,11.67548195]
[1756907496573,11.67548195,212.72,212.66,11.67548195]
[1756907496876,0.69,212.74,212.66,11.67548195]
[1756907497275,11.67548195,212.71,212.65,58.37802542]
[1756907497483,0.69,212.74,212.65,42.0]
[1756907497787,0.69,212.74,212.66,11.67548195]
[1756907498401,11.73548195,212.76,212.7,11.67548195]
[1756907498686,0.06,212.76,212.71,41.98]
[1756907498892,11.67548195,212.74,212.71,41.98]
[1756907499091,11.67548195,212.73,212.71,41.98]
[1756907499388,0.06,212.76,212.7,41.96]
[1756907499586,11.67548195,212.73,212.69,41.96]
[1756907499889,0.06,212.76,212.7,12.34548195]
[1756907500193,0.06,212.76,212.7,0.67]
[1756907500707,11.67548195,212.74,212.68,11.67548195]
[1756907500897,11.67548195,212.72,212.67,16.37757686]
[1756907501192,0.75,212.76,212.68,41.96]
[1756907501193,11.67548195,212.73,212.68,41.96]
[1756907501376,11.67548195,212.73,212.67,4.70190357]
[1756907501695,0.75,212.76,212.68,41.96]
[1756907502003,11.67548195,212.74,212.69,11.67548195]
[1756907502189,11.73548195,212.76,212.7,12.34548195]
[1756907502369,0.06,212.76,212.72,11.67548195]
[1756907502794,11.73548195,212.76,212.73,41.94]
[1756907503174,11.67548195,212.74,212.73,41.94]
[1756907503572,11.67548195,212.74,212.66,0.67]
[1756907503573,12.33548195,212.74,212.66,0.67]
[1756907503779,11.67548195,212.72,212.7,41.94]
[1756907503975,12.33548195,212.71,212.64,13.59559401]
[1756907504304,0.66,212.71,212.65,41.94]
[1756907504476,0.06,212.76,212.67,11.67548195]
[1756907504677,0.06,212.76,212.68,11.67548195]
[1756907504989,11.73548195,212.76,212.7,11.67548195]
[1756907505186,11.73548195,212.76,212.71,41.92]
[1756907505493,0.06,212.76,212.72,17.04649736]
[1756907505795,0.06,212.76,212.73,0.67]
[1756907505979,0.06,212.76,212.75,11.67548195]
[1756907506176,0.06,212.76,212.73,11.67548195]
[1756907506377,0.06,212.76,212.73,12.34548195]
[1756907506601,0.06,212.76,212.74,11.67548195]
[1756907506787,0.06,212.76,212.71,41.92]
[1756907506788,0.06,212.76,212.75,41.92]
[1756907507695,0.06,212.76,212.75,58.29583447]
[1756907508222,0.06,212.76,212.71,4.70123642]
[1756907508504,0.06,212.76,212.72,41.92]
[1756907508683,0.06,212.76,212.71,0.67]
[1756907508684,0.06,212.76,212.74,11.67548195]
[1756907508996,0.06,212.76,212.73,41.9]
[1756907509195,0.06,212.76,212.74,11.67548195]
[1756907509403,0.06,212.76,212.73,53.57548195]
[1756907509580,0.06,212.76,212.73,41.9]
[1756907509900,0.06,212.76,212.73,53.57548195]
[1756907510202,0.06,212.76,212.73,58.27619988]
[1756907510495,0.06,212.76,212.74,11.67548195]
[1756907510890,0.66,212.75,212.68,0.67]
[1756907511097,11.73548195,212.76,212.7,11.67548195]
[1756907511280,0.06,212.76,212.71,11.67548195]
[1756907511483,0.06,212.76,212.69,41.88]
[1756907511690,0.06,212.76,212.73,11.67548195]
[1756907511882,0.06,212.76,212.75,11.67548195]
[1756907512283,0.06,212.76,212.7,0.67]
[1756907512598,0.06,212.76,212.75,11.67548195]
[1756907512799,0.06,212.76,212.75,54.22548195]
[1756907513492,0.06,212.76,212.75,42.55]
[1756907513688,0.06,212.76,212.75,58.92583447]
[1756907513884,0.06,212.76,212.75,4.70035252]
[1756907514195,0.06,212.76,212.75,11.67548195]
[1756907514403,0.06,212.76,212.75,41.86]
[1756907514801,0.06,212.76,212.75,53.53548195]
[1756907515106,0.06,212.76,212.73,11.67548195]
[1756907515300,0.06,212.76,212.75,53.53548195]
[1756907515692,0.06,212.76,212.75,58.90583447]
[1756907516094,0.06,212.76,212.73,4.70061567]
[1756907516415,0.06,212.76,212.74,53.51548195]
[1756907516992,0.06,212.76,212.73,11.67548195]
[1756907517296,0.72,212.76,212.7,13.59559401]
[1756907517482,0.72,212.76,212.71,41.84]
[1756907517682,0.72,212.76,212.71,53.51548195]
[1756907517882,0.72,212.76,212.71,58.21666032]
[1756907518097,12.33548195,212.75,212.72,41.84]
[1756907518300,12.33548195,212.74,212.72,41.84]
[1756907518483,0.66,212.73,212.72,41.84]
[1756907519001,12.33548195,212.73,212.66,11.67548195]
[1756907519183,12.33548195,212.73,212.63,14.26559401]
[1756907519184,11.67548195,212.71,212.63,14.26559401]
[1756907519391,11.67548195,212.71,212.65,11.67548195]
[1756907519908,11.67548195,212.71,212.66,4.70234176]
[1756907520108,12.33548195,212.71,212.66,4.70234176]
[1756907520285,11.67548195,212.67,212.56,0.67]
[1756907520487,0.66,212.7,212.56,0.67]
[1756907520488,11.67548195,212.65,212.59,11.67548195]
[1756907520892,11.67548195,212.64,212.58,11.67548195]
[1756907521096,0.66,212.64,212.57,41.82]
[1756907521312,12.33548195,212.64,212.58,11.67548195]
[1756907521493,12.33548195,212.64,212.57,53.49548195]
[1756907521494,11.67548195,212.63,212.57,53.49548195]
[1756907522014,11.67548195,212.63,212.57,58.19980788]
[1756907522198,11.67548195,212.63,212.57,41.82]
[1756907522404,0.66,212.64,212.57,53.49548195]
[1756907522605,0.66,212.64,212.58,11.67548195]
[1756907522802,11.67548195,212.65,212.59,11.67548195]
[1756907523315,11.67548195,212.63,212.57,58.19980514]